fUSD/lending_fUSD_20241008
["ID","MTS","AMOUNT","RATE_DAILY","PERIOD"]
[340056348,1728423044406,-151.0,0.00012329,2]
[340056349,1728423044415,-151.0,0.00012329,2]
[340056350,1728423044425,-151.0,0.00012329,2]
[340056351,1728423044434,-151.0,0.00012329,2]
[340056352,1728423044443,-210.485011,0.00012329,2]
[340056353,1728423044453,-151.0,0.00012329,2]
[340056354,1728423044462,-151.680141,0.00012329,2]
[340056355,1728423044472,-151.0,0.00012329,2]
[340056356,1728423044482,-152.799328,0.00012329,2]
[340056357,1728423044493,-151.0,0.00012329,2]
[340056358,1728423044503,-151.0,0.00012329,2]
[340056359,1728423044512,-151.0,0.00012329,2]
[340056360,1728423044527,-151.0,0.00012329,2]
[340056361,1728423044536,-151.0,0.00012329,2]
[340056362,1728423044546,-151.0,0.00012329,2]
[340056363,1728423044556,-161.100392,0.00012329,2]
[340056364,1728423044566,-151.0,0.00012329,2]
[340056365,1728423044576,-151.0,0.00012329,2]
[340056366,1728423044586,-151.0,0.00012329,2]
[340056367,1728423044598,-151.0,0.00012329,2]
[340056368,1728423044607,-151.0,0.00012329,2]
[340056369,1728423044617,-151.0,0.00012329,2]
[340056370,1728423044626,-151.0,0.00012329,2]
[340056371,1728423044636,-151.0,0.00012329,2]
[340056372,1728423044645,-162.973362,0.00012329,2]
[340056373,1728423044654,-151.0,0.00012329,2]
[340056374,1728423044664,-171.05,0.00012329,2]
[340056375,1728423044674,-151.0,0.00012329,2]
[340056376,1728423044683,-201.516321,0.00012329,2]
[340056377,1728423044693,-151.0,0.00012329,2]
[340056378,1728423044702,-151.0,0.00012329,2]
[340056379,1728423044712,-151.0,0.00012329,2]
[340056380,1728423044722,-151.0,0.00012329,2]
[340056381,1728423044731,-833.364524,0.00012329,2]
[340056382,1728423044740,-833.364524,0.00012329,2]
[340056383,1728423044749,-151.0,0.00012329,2]
[340056384,1728423044757,-157.427356,0.00012329,2]
[340056385,1728423044768,-157.427356,0.00012329,2]
[340056386,1728423044777,-484.391636,0.00012329,2]
[340056387,1728423044786,-484.391636,0.00012329,2]
[340056388,1728423044795,-207.731464,0.00012329,2]
[340056389,1728423044804,-207.731464,0.00012329,2]
[340056390,1728423044813,-151.0,0.00012329,2]
[340056391,1728423044823,-151.0,0.00012329,2]
[340056392,1728423044832,-151.0,0.00012329,2]
[340056393,1728423044841,-151.0,0.00012329,2]
[340056394,1728423044850,-151.0,0.00012329,2]
[340056395,1728423044859,-151.0,0.00012329,2]
[340056396,1728423044869,-151.0,0.00012362,2]
[340056397,1728423044879,-833.364524,0.00012362,2]
[340056398,1728423044888,-833.364524,0.00012362,2]
[340056399,1728423044897,-202.28,0.00012362,2]
[340056400,1728423044906,-500.0,0.00012443,2]
[340056401,1728423044916,-167.0,0.00012445,2]
[340056402,1728423044926,-167.0,0.00012445,2]
[340056403,1728423044936,-167.0,0.00012445,2]
[340056404,1728423044946,-200.0,0.00012566,2]
[340056405,1728423044955,-800.0,0.00012574,2]
[340056406,1728423044964,-658.69,0.00012578,2]
[340056407,1728423044974,-151.0,0.000127,2]
[340056408,1728423044983,-151.0,0.000127,2]
[340056409,1728423044992,-484.391636,0.000127,2]
[340056410,1728423045001,-484.391636,0.000127,2]
[340056411,1728423045010,-207.731464,0.000127,2]
[340056412,1728423045019,-207.731464,0.000127,2]
[340056413,1728423045029,-256.99,0.00012827,2]
[340056414,1728423045038,-151.0,0.00012958,2]
[340056415,1728423045050,-151.0,0.00012958,2]
[340056416,1728423045059,-250.571704,0.00012958,2]
[340056417,1728423045068,-167.0,0.00012958,2]
[340056418,1728423045077,-500.0,0.00012959,2]
[340056419,1728423045086,-150.0,0.00012959,2]
[340056420,1728423045096,-300.0,0.00013,2]
[340056421,1728423045107,-248.03818619,0.00013167,2]
[340056422,1728423045116,-150.0,0.00013188,2]
[340056423,1728423045126,-587.0,0.00013281,2]
[340056424,1728423045135,-256.99,0.00013385,2]
[340056425,1728423045145,-167.0,0.00013472,2]
[340056426,1728423045154,-151.0,0.00013472,2]
[340056427,1728423045163,-151.0,0.00013472,2]
[340056428,1728423045173,-151.0,0.00013472,2]
[340056429,1728423045182,-1000.0,0.000136,3]
[340056430,1728423045191,-200.0,0.00013699,2]
[340056431,1728423045200,-151.0,0.000138,2]
[340056432,1728423045210,-151.0,0.000138,2]
[340056433,1728423045219,-151.0,0.000138,2]
[340056434,1728423045228,-160.929542,0.000138,2]
[340056435,1728423045239,-151.0,0.000138,2]
[340056436,1728423045248,-833.364524,0.000138,2]
[340056437,1728423045257,-833.364524,0.000138,2]
[340056438,1728423045267,-151.0,0.000138,2]
[340056439,1728423045276,-157.427356,0.000138,2]
[340056440,1728423045285,-157.427356,0.000138,2]
[340056441,1728423045294,-484.391636,0.000138,2]
[340056442,1728423045303,-151.0,0.000138,2]
[340056443,1728423045312,-484.391636,0.000138,2]
[340056444,1728423045321,-151.0,0.000138,2]
[340056445,1728423045330,-207.731464,0.000138,2]
[340056446,1728423045340,-207.731464,0.000138,2]
[340056447,1728423045349,-406702.568035,0.000138,2]
[340056448,1728423045358,-151.0,0.000138,2]
[340056449,1728423045368,-151.026635,0.000138,2]
[340056450,1728423045377,-220.043102,0.000138,2]
[340056451,1728423045386,-151.0,0.000138,2]
[340056452,1728423045395,-151.0,0.000138,2]
[340056453,1728423045404,-151.0,0.0001389,2]
[340056454,1728423045414,-151.0,0.000139,2]
[340056455,1728423045423,-151.0,0.000139,2]
[340056456,1728423045432,-833.364524,0.000139,2]
[340056457,1728423045442,-833.364524,0.000139,2]
[340056458,1728423045451,-600.0,0.000139,5]
[340056459,1728423045460,-256006.021535,0.000139,2]
[340056460,1728423045470,-200.0,0.00013962,2]
[340056461,1728423045479,-14222.5567519,0.00013965,2]
[340056462,1728423045489,-800.0,0.00013971,2]
[340056463,1728423045498,-658.69,0.00013975,2]
[340056464,1728423045508,-159.99,0.00013983,2]
[340056465,1728423045519,-167.0,0.00013985,2]
[340056466,1728423045529,-500.0,0.00014,2]
[340056467,1728423045656,-394.47,0.00014,2]
[340056468,1728423045666,-500.0,0.00014,2]
[340056469,1728423045676,-500.0,0.00014,2]
[340056470,1728423045686,-500.0,0.00014,2]
[340056471,1728423045696,-500.0,0.00014,2]
[340056472,1728423045706,-500.0,0.00014,2]
[340056473,1728423045715,-500.0,0.00014,2]
[340056474,1728423045724,-500.0,0.00014,2]
[340056475,1728423045734,-500.0,0.00014,2]
[340056476,1728423045743,-500.0,0.00014,2]
[340056477,1728423045752,-500.0,0.00014,2]
[340056478,1728423045761,-500.0,0.00014,2]
[340056479,1728423045771,-500.0,0.00014,2]
[340056480,1728423045780,-500.0,0.00014,2]
[340056481,1728423045790,-500.0,0.00014,2]
[340056482,1728423045799,-500.0,0.00014,2]
[340056483,1728423045809,-500.0,0.00014,2]
[340056484,1728423045818,-500.0,0.00014,2]
[340056485,1728423045827,-500.0,0.00014,2]
[340056486,1728423045837,-500.0,0.00014,2]
[340056487,1728423045846,-295.72,0.00014,2]
[340056488,1728423045856,-151.0,0.0001409,2]
[340056489,1728423045865,-151.0,0.0001409,2]
[340056490,1728423045874,-833.364524,0.0001409,2]
[340056491,1728423045883,-833.364524,0.0001409,2]
[340056492,1728423045893,-833.364524,0.0001409,2]
[340056493,1728423045902,-833.364524,0.0001409,2]
[340056494,1728423045912,-23923.6804726,0.0001409,2]
[340056495,1728423045921,-14222.5567519,0.0001409,2]
[340056496,1728423045931,-26651.86218043,0.000141,2]
[340056497,1728423045940,-151.0,0.000141,2]
[340056498,1728423045950,-270.442776,0.000141,2]
[340056499,1728423045960,-151.0,0.000141,2]
[340056500,1728423045969,-833.364524,0.000141,2]
[340056501,1728423045979,-833.364524,0.000141,2]
[340056502,1728423045989,-151.0,0.000141,2]
[340056503,1728423045998,-157.427356,0.000141,2]
[340056504,1728423046007,-157.427356,0.000141,2]
[340056505,1728423046016,-484.391636,0.000141,2]
[340056506,1728423046026,-151.0,0.000141,2]
[340056507,1728423046035,-484.391636,0.000141,2]
[340056508,1728423046044,-297.484903,0.000141,2]
[340056509,1728423046054,-207.731464,0.000141,2]
[340056510,1728423046063,-207.731464,0.000141,2]
[340056511,1728423046072,-151.0,0.000141,2]
[340056512,1728423046082,-261.856028,0.000141,2]
[340056513,1728423046092,-233.72383,0.000141,2]
[340056514,1728423046102,-167.0,0.00014499,2]
[340056515,1728423046111,-167.0,0.00014499,2]
[340056516,1728423046129,-823.0,0.00014594,2]
[340056517,1728423046138,-1500.0,0.00014677,2]
[340056518,1728423046148,-1907.0,0.00014689,2]
[340056519,1728423046157,-926.025,0.00014689,2]
[340056520,1728423046167,-185.761,0.00014689,2]
[340056521,1728423046176,-150.0,0.00014689,2]
[340056522,1728423046185,-542.342,0.00014689,2]
[340056523,1728423046195,-449.0,0.00014689,2]
[340056524,1728423046204,-1295.0,0.00014689,2]
[340056525,1728423046213,-244.2,0.00014689,2]
[340056526,1728423046223,-150.0,0.00014699,2]
[340056527,1728423046233,-150.0,0.00014717,2]
[340056528,1728423046242,-150.0,0.00014717,2]
[340056529,1728423046251,-150.0,0.00014718,2]
[340056530,1728423046260,-300.0,0.00014722,2]
[340056531,1728423046270,-150.0,0.00014726,2]
[340056532,1728423046279,-150.0,0.00014726,2]
[340056533,1728423046289,-150.0,0.00014727,2]
[340056534,1728423046299,-156.21976284,0.00014729,2]
[340056535,1728423046309,-150.0,0.00014729,2]
[340056536,1728423046318,-150.0,0.00014746,2]
[340056537,1728423046327,-150.0,0.00014746,2]
[340056538,1728423046337,-150.0,0.00014747,2]
[340056539,1728423046346,-150.0,0.00014748,2]
[340056540,1728423046355,-150.0,0.0001475,2]
[340056541,1728423046364,-150.0,0.00014751,2]
[340056542,1728423046374,-150.0,0.00014755,2]
[340056543,1728423046383,-150.0,0.00014757,2]
[340056544,1728423046392,-150.0,0.0001476,2]
[340056545,1728423046402,-150.0,0.00014762,2]
[340056546,1728423046411,-150.0,0.00014763,2]
[340056547,1728423046421,-14222.5567519,0.00014772,2]
[340056548,1728423046430,-150.0,0.00014779,2]
[340056549,1728423046439,-150.0,0.0001478,2]
[340056550,1728423046448,-150.0,0.00014782,2]
[340056551,1728423046458,-150.0,0.00014787,2]
[340056552,1728423046466,-150.0,0.00014789,2]
[340056553,1728423046476,-150.0,0.00014793,2]
[340056554,1728423046486,-150.0,0.00014793,2]
[340056555,1728423046495,-150.0,0.00014794,2]
[340056556,1728423046505,-150.0,0.00014795,2]
[340056557,1728423046514,-150.0,0.00014796,2]
[340056558,1728423046526,-150.0,0.00014797,2]
[340056559,1728423046535,-150.0,0.00014798,2]
[340056560,1728423046545,-150.0,0.00014798,2]
[340056561,1728423046554,-150.0,0.00014798,2]
[340056562,1728423046563,-150.0,0.00014799,2]
[340056563,1728423046574,-150.0,0.00014801,2]
[340056564,1728423046583,-150.0,0.00014812,2]
[340056565,1728423046594,-151.0,0.00014817,2]
[340056566,1728423046604,-833.364524,0.00014817,2]
[340056567,1728423046614,-833.364524,0.00014817,2]
[340056568,1728423046623,-150.0,0.00014818,2]
[340056569,1728423046632,-150.0,0.0001482,2]
[340056570,1728423046641,-150.0,0.00014825,2]
[340056571,1728423046650,-150.0,0.00014829,2]
[340056572,1728423046659,-150.0,0.00014829,2]
[340056573,1728423046669,-150.0,0.0001483,2]
[340056574,1728423046678,-1500.0,0.00014833,2]
[340056575,1728423046688,-150.0,0.00014843,2]
[340056576,1728423046697,-150.0,0.00014846,2]
[340056577,1728423046707,-150.0,0.00014847,2]
[340056578,1728423046716,-150.0,0.00014847,2]
[340056579,1728423046726,-150.0,0.00014848,2]
[340056580,1728423046735,-150.0,0.00014851,2]
[340056581,1728423046744,-150.0,0.00014857,2]
[340056583,1728423046754,-150.0,0.00014859,2]
[340056585,1728423046763,-150.0,0.00014864,2]
[340056586,1728423046773,-150.0,0.00014865,2]
[340056587,1728423046782,-150.0,0.00014869,2]
[340056588,1728423046791,-400.0,0.0001487,2]
[340056589,1728423046800,-150.0,0.0001487,2]
[340056590,1728423046809,-150.0,0.00014873,2]
[340056591,1728423046818,-150.0,0.00014875,2]
[340056592,1728423046829,-150.0,0.00014875,2]
[340056593,1728423046838,-1500.0,0.00014879,2]
[340056594,1728423046847,-150.0,0.00014879,2]
[340056595,1728423046858,-150.0,0.0001488,2]
[340056596,1728423046867,-151.0,0.00014884,2]
[340056597,1728423046876,-150.0,0.00014887,2]
[340056598,1728423046885,-150.0,0.0001489,2]
[340056599,1728423046894,-150.0,0.00014891,2]
[340056600,1728423046903,-150.0,0.00014892,2]
[340056601,1728423046913,-150.0,0.00014892,2]
[340056602,1728423046922,-150.0,0.00014895,2]
[340056603,1728423046931,-150.0,0.00014897,2]
[340056604,1728423046940,-151.0,0.00014898,2]
[340056605,1728423046950,-157.427356,0.00014898,2]
[340056606,1728423046959,-157.427356,0.00014898,2]
[340056607,1728423046968,-150.0,0.00014898,2]
[340056608,1728423046977,-484.391636,0.00014898,2]
[340056609,1728423046986,-484.391636,0.00014898,2]
[340056610,1728423046995,-207.731464,0.00014898,2]
[340056611,1728423047004,-207.731464,0.00014898,2]
[340056612,1728423047013,-212.46201181,0.000149,2]
[340056613,1728423047022,-212.46201181,0.000149,2]
[340056614,1728423047031,-212.46201181,0.000149,2]
[340056615,1728423047040,-150.0,0.00014903,2]
[340056616,1728423047049,-150.0,0.00014903,2]
[340056617,1728423047059,-150.0,0.00014909,2]
[340056618,1728423047068,-150.0,0.00014911,2]
[340056619,1728423047077,-150.0,0.00014913,2]
[340056620,1728423047086,-150.0,0.00014922,2]
[340056621,1728423047097,-150.0,0.00014923,2]
[340056622,1728423047106,-150.0,0.00014925,2]
[340056623,1728423047115,-150.0,0.00014929,2]
[340056624,1728423047125,-150.0,0.00014935,2]
[340056625,1728423047134,-150.0,0.00014935,2]
[340056626,1728423047143,-150.0,0.00014942,2]
[340056627,1728423047153,-150.0,0.00014943,2]
[340056628,1728423047162,-150.0,0.00014943,2]
[340056629,1728423047171,-150.0,0.00014946,2]
[340056630,1728423047180,-150.0,0.00014964,2]
[340056631,1728423047189,-150.0,0.00014965,2]
[340056632,1728423047199,-150.0,0.00014965,2]
[340056633,1728423047207,-150.0,0.00014968,2]
[340056634,1728423047217,-400.0,0.0001497,2]
[340056635,1728423047226,-400.0,0.0001497,2]
[340056636,1728423047236,-400.0,0.0001497,2]
[340056637,1728423047244,-150.0,0.00014972,2]
[340056638,1728423047253,-500.0,0.00014973,2]
[340056639,1728423047262,-150.0,0.00014974,2]
[340056640,1728423047271,-150.0,0.00014978,2]
[340056641,1728423047280,-150.0,0.00014982,2]
[340056642,1728423047289,-150.0,0.00014985,2]
[340056643,1728423047299,-151.0,0.0001499,2]
[340056644,1728423047309,-833.364524,0.0001499,2]
[340056645,1728423047319,-833.364524,0.0001499,2]
[340056646,1728423047328,-42667.6702558,0.0001499,2]
[340056647,1728423047337,-430.0,0.00015,2]
[340056648,1728423047346,-40078.15177436,0.00015,2]
[340056649,1728423047363,-252461.14054143,0.00015,2]
[340056650,1728423047372,-430.0,0.00015,2]
[340056651,1728423047381,-1040.0,0.00015,2]
[340056652,1728423047390,-151.0,0.00015,2]
[340056653,1728423047399,-40235.02709242,0.00015,10]
[340056654,1728423047408,-350.0,0.00015,2]
[340056655,1728423047417,-151.0,0.00015,2]
[340056656,1728423047427,-151.0,0.00015,2]
[340056657,1728423047436,-157.427356,0.00015,2]
[340056658,1728423047445,-157.427356,0.00015,2]
[340056659,1728423047454,-157.427356,0.00015,2]
[340056660,1728423047463,-157.427356,0.00015,2]
[340056661,1728423047473,-484.391636,0.00015,2]
[340056662,1728423047483,-484.391636,0.00015,2]
[340056663,1728423047492,-151.0,0.00015,2]
[340056664,1728423047501,-151.0,0.00015,2]
[340056665,1728423047510,-484.391636,0.00015,2]
[340056666,1728423047523,-484.391636,0.00015,2]
[340056667,1728423047532,-207.731464,0.00015,2]
[340056668,1728423047541,-207.731464,0.00015,2]
[340056669,1728423047551,-207.731464,0.00015,2]
[340056670,1728423047561,-207.731464,0.00015,2]
[340056671,1728423047570,-455.9967,0.00015,2]
[340056672,1728423047580,-5158.0,0.00015,2]
[340056673,1728423047590,-151.0,0.00015,2]
[340056674,1728423047600,-151.0,0.00015,2]
[340056675,1728423047610,-300.0,0.00015068,2]
[340056676,1728423047619,-150.0,0.00015079,2]
[340056677,1728423047628,-150.0,0.00015089,2]
[340056678,1728423047638,-150.0,0.00015089,2]
[340056679,1728423047650,-1213.91702693,0.00015235,2]
[340056680,1728423047660,-200.0,0.00015358,2]
[340056681,1728423047669,-800.0,0.00015368,2]
[340056682,1728423047679,-658.69,0.00015373,2]
[340056683,1728423047688,-500.0,0.00015699,2]
[340056684,1728423047697,-152.58540867,0.00015699,2]
[340056685,1728423047706,-516.02305746,0.0001575,2]
[340056686,1728423047716,-1432.94383263,0.00015778,2]
[340056687,1728423047725,-318.05,0.0001579,2]
[340056688,1728423047734,-161.2582103,0.0001579,2]
[340056689,1728423047743,-900.0,0.000159,5]
[340056690,1728423047752,-400.0,0.0001597,2]
[340056691,1728423047761,-90433.58,0.00015995,2]
[340056692,1728423047770,-155.626401,0.00015995,2]
[340056693,1728423047779,-156.898775,0.00015995,2]
[340056694,1728423047788,-157.427356,0.00015995,2]
[340056695,1728423047798,-157.427356,0.00015995,2]
[340056696,1728423047807,-484.391636,0.00015995,2]
[340056697,1728423047817,-151.0,0.00015995,2]
[340056698,1728423047826,-484.391636,0.00015995,2]
[340056699,1728423047835,-207.731464,0.00015995,2]
[340056700,1728423047846,-207.731464,0.00015995,2]
[340056701,1728423047856,-151.0,0.00015995,2]
[340056702,1728423047865,-1152.0,0.00016037,2]
[340056703,1728423047875,-823.0,0.00016293,2]
[340056704,1728423047887,-300.0,0.00016438,2]
[340056705,1728423047899,-150.0,0.00016438,2]
[340056706,1728423047908,-186.58,0.00016438,2]
[340056707,1728423047917,-200.0,0.00016754,2]
[340056708,1728423047926,-800.0,0.00016766,2]
[340056709,1728423047935,-658.69,0.0001677,2]
[340056710,1728423047944,-159.99,0.0001678,2]
[340056711,1728423047953,-150.0,0.00016871,2]
[340056712,1728423047963,-400.0,0.00017,2]
[340056713,1728423047973,-150.0,0.00017304,2]
[340056714,1728423047983,-1613.0,0.00017623,2]
[340056715,1728423047993,-150.0,0.00017689,2]
[340056716,1728423048003,-894.88,0.00017728,2]
[340056717,1728423048012,-225.06,0.00017728,2]
[340056718,1728423048021,-6698.2,0.00017728,2]
[340056719,1728423048030,-150.0,0.00017736,2]
[340056720,1728423048039,-755.07,0.00017869,2]
[340056721,1728423048049,-755.07,0.00017869,2]
[340056722,1728423048058,-150.0,0.00018079,2]
[340056723,1728423048068,-150.0,0.00018089,2]
[340056724,1728423048077,-150.0,0.00018089,2]
[340056725,1728423048087,-150.0,0.00018169,2]
[340056726,1728423048097,-500.0,0.00018438,2]
[340056727,1728423048217,-150.0,0.00018601,2]
[340056728,1728423048227,-755.07,0.00018828,2]
[340056729,1728423048237,-755.07,0.00018828,2]
[340056730,1728423048246,-200.85,0.00018828,2]
[340056731,1728423048255,-450.0,0.00019,2]
[340056732,1728423048264,-679.850569,0.00019,2]
[340056733,1728423048273,-150.0,0.00019034,2]
[340056734,1728423048282,-178.12995947,0.00019178,2]
[340056735,1728423048291,-1795.0,0.00019366,2]
[340056736,1728423048301,-150.0,0.00019466,2]
[340056737,1728423048310,-178.446356,0.00019615,2]
[340056738,1728423048319,-150.0,0.00019899,2]
[340056739,1728423048328,-2485.9619324,0.00019986,2]
[340056740,1728423048337,-24947.5835201,0.00019986,2]
[340056741,1728423048347,-157.427356,0.00019986,2]
[340056742,1728423048356,-157.427363,0.00019986,2]
[340056743,1728423048365,-484.391636,0.00019986,2]
[340056744,1728423048375,-484.391638,0.00019986,2]
[340056745,1728423048384,-207.731464,0.00019986,2]
[340056746,1728423048394,-207.731455,0.00019986,2]
[340056747,1728423048404,-151.0,0.00019986,2]
[340056748,1728423048413,-860.0,0.0002,2]
[340056749,1728423048422,-111759.54376358,0.0002,2]
[340056750,1728423048435,-89119.30604532,0.0002,2]
[340056751,1728423048444,-627.66706757,0.0002,2]
[340056752,1728423048453,-860.0,0.0002,2]
[340056753,1728423048463,-151.0,0.0002,2]
[340056754,1728423048472,-500.0,0.0002,2]
[340056755,1728423048482,-500.2325637,0.000201,2]
[340056756,1728423048492,-702.49418,0.000201,2]
[340056757,1728423048501,-150.0,0.00020332,2]
[340056758,1728423048511,-178.446356,0.00020596,2]
[340056759,1728423048523,-1432.94383263,0.00020656,2]
[340056760,1728423048533,-423.71,0.00020693,2]
[340056761,1728423048543,-423.71,0.00020693,2]
[340056762,1728423048552,-421.96,0.00020693,2]
[340056763,1728423048562,-150.0,0.00020764,2]
[340056764,1728423048572,-168.65437,0.0002085,2]
[340056765,1728423048581,-358.83,0.00020883,2]
[340056766,1728423048591,-358.83,0.00020883,2]
[340056767,1728423048601,-357.9,0.00020883,2]
[340056768,1728423048612,-308.92479982,0.00021,5]
[340056769,1728423048621,-500.0,0.00021,2]
[340056770,1728423048630,-1959.87275006,0.00021,2]
[340056771,1728423048639,-2000.0,0.0002111,2]
[340056772,1728423048649,-200.0,0.0002111,2]
[340056773,1728423048658,-956.47235278,0.00021178,2]
[340056774,1728423048667,-150.0,0.00021197,2]
[340056775,1728423048676,-150.0,0.00021629,2]
[340056776,1728423048687,-780.21,0.00021918,2]
[340056777,1728423048698,-173.12,0.00021918,2]
[340056778,1728423048707,-151.0,0.00021918,2]
[340056779,1728423048716,-3416.18739711,0.00022,2]
[340056780,1728423048725,-501.67748742,0.00022,2]
[340056781,1728423048734,-150.0,0.00022062,2]
[340056782,1728423048743,-188.17,0.00022137,30]
[340056783,1728423048752,-150.21,0.00022416,2]
[340056784,1728423048762,-150.0,0.00022494,2]
[340056785,1728423048771,-186.58,0.00022831,2]
[340056786,1728423048780,-150.0,0.00022927,2]
[340056787,1728423048789,-300.52,0.00023,2]
[340056788,1728423048799,-1003.04,0.00023,2]
[340056789,1728423048808,-550.0,0.00023,2]
[340056790,1728423048817,-200.0,0.00023,2]
[340056791,1728423048826,-534.45,0.00023296,2]
[340056792,1728423048836,-152.0,0.00023296,2]
[340056793,1728423048845,-150.0,0.0002336,2]
[340056794,1728423048856,-150.0,0.00023792,2]
[340056795,1728423048865,-1528.6396564,0.00023906,2]
[340056796,1728423048874,-20723.88013216,0.00023922,2]
[340056797,1728423048894,-500.57827625,0.00023922,2]
[340056798,1728423048942,244.86,9.341e-05,2]
[340056799,1728423049033,-623.581,0.00011379,2]
[340056800,1728423049043,-244.86,0.00011604,2]
[340056801,1728423049053,-244.86,0.00013868,2]
[340056802,1728423049062,-244.86,0.00016132,2]
[340056803,1728423049071,-244.86,0.00018396,2]
[340056804,1728423049080,-244.86,0.0002066,2]
[340056805,1728423049090,-244.86,0.00022924,2]
[340056806,1728423049099,-3536.81050889,0.00023922,2]
[340056807,1728423049127,-339.80762295,0.00023922,2]
[340056808,1728423049153,-2008.43148739,0.00023922,2]
[340056809,1728424001877,150.0,0.00010234,4]
[340056820,1728424232320,-150.21,0.00010959,2]
[340056822,1728424232333,-250.0,0.00011,2]
[340056824,1728424232342,-330.94094616,0.00012671,2]
[340056826,1728424232354,-227.05905384,0.00012671,2]
[340056828,1728424232363,-300.0,0.00013,2]
[340056830,1728424232373,-357.28914677,0.00014598,2]
[340056832,1728424232382,-357.28914677,0.000147,2]
[340056834,1728424232391,-1662.07572248,0.000148,2]
[340056836,1728424232403,-107.52277752,0.000148,2]
[340056837,1728424232412,-500.0,0.00014873,2]
[340056838,1728424232421,-226.1768,0.000149,2]
[340056839,1728424232430,-1463.846,0.000149,2]
[340056840,1728424232439,-1124.01287415,0.000149,2]
[340056841,1728424232450,-2228.53585342,0.000149,2]
[340056842,1728424232462,-1547.44757243,0.000149,2]
[340056843,1728424232472,-500.0,0.000149,2]
[340056844,1728424232482,-70326.75457948,0.000149,2]
[340056845,1728424232495,-910.67391534,0.000149,2]
[340056846,1728424232506,-636.79253411,0.000149,2]
[340056847,1728424232520,-868.52875495,0.000149,2]
[340056848,1728424232532,-1594.44501813,0.000149,2]
[340056849,1728424232548,-474.46635641,0.000149,2]
[340056850,1728424232559,-23757.12704158,0.000149,2]
[340056851,1728424232569,-7944.6916,0.000149,2]
[340056853,1728424232580,-4851.0,0.00015,2]
[340056855,1728424232590,-350.0,0.00015,2]
[340056857,1728424232598,-499.99,0.00015,2]
[340056859,1728424232608,-455.0,0.000162,2]
[340056861,1728424232619,-211.08,0.00016275,2]
[340056863,1728424232630,-186.58,0.00016438,2]
[340056866,1728424232639,-418.0705802,0.0001681,2]
[340056869,1728424232649,-400.0,0.00017,2]
[340056871,1728424232658,-418.0705802,0.0001719,2]
[340056873,1728424232667,-418.0705802,0.00017408,2]
[340056876,1728424232676,-418.0705802,0.00017747,2]
[340056878,1728424232685,-418.0705802,0.00017894,2]
[340056880,1728424232694,-11805.09,0.00018019,2]
[340056882,1728424232703,-418.0705802,0.00018193,2]
[340056884,1728424232712,-200.0,0.00018198,2]
[340056885,1728424232721,-793.0,0.00018236,2]